Workbook

Sheet Front page
B3: LULUCF Sector - CB1 Performance Indicators
B7: Description: | E7: The Welsh Government has developed a comprehensive performance monitoring framework to track progress towards meeting the emissions reductions set out in Prosperity for All: A Low Carbon Wales. This workbook contains indicators relating to progress in the LULUCF (Land Use, Land Use Change, and Forestry) sector. These indicators track the implementation of decarbonisation policies and proposals, and the key drivers of emissions.
B9: Version: | E9: 1.1
B11: Published: | E11: [Insert publication date]
B13: Contact details: | E13: climatechange@gov.wales
B18: Disclaimer These spreadsheets have been prepared by Ricardo Energy & Environment, a trading name of Ricardo-AEA Ltd under contract. Ricardo Energy & Environment accepts no liability whatsoever to any third party for any loss or damage arising from any interpretation or use of the information contained in this document, or reliance on any views expressed therein. Welsh Government is looking to build on the development of the indicator sets and is looking to improve the accessibility of the underlying indicator data for future carbon budgets.
F66: ok

Sheet Introduction
A1: INTRODUCTION Please read before continuing

Sheet Notes
B2: Overarching notes
B3: Note number | D3: Note
B4: 1 | D4: "CB1 progress" assesses the % change over CB1. This usually covers the years 2016-2020, but may use other years if data for this time period is unavailable (e.g. 2017-2020 in the absence of 2016 data). For Tier 3 indicators where a desired direction of travel could not be assigned, "CB1 progress" is replaced with "total delivery over CB1" (e.g. total investment delivered during CB1, or total number of projects delivered).
B5: 2 | D5: Proposals are in red text
B6: 3 | D6: 2020 progress relates to the anticipated contribution to the CCC’s 2020 pathway, and assesses whether or not this contribution (usually expressed as an intended emissions reduction from the base year) has been met.
B7: 4 | D7: The red box surrounding data on graphs and tables indicates the years included within CB1, and therefore those included within the "CB1 progress" assessment.
B14: Sector specfiic notes
B15: Note code | D15: Note
B16: a | D16: For LULUCF, the anticipated contribution to the CCC's 2020 pathways is not expressed as an intended emissions reduction from the base year, but is instead expressed as an intention for the sector to remain a net sink of emissions (i.e., negative emissions values).

Sheet Contents
B2: Land Use & Forestry Sector Performance Indicators
B4: Indicator number | C4: Policy | D4: Indicator | E4: Tier | F4: Desired direction of travel | G4: CB1 progress or delivery [Note 1] | H4: Progress since 2020 | I4: Unit
B5: L3.1 | C5: 62 | D5: ='L3.1'!C3 -> Implementation of Natural Resources Policy | E5: 3 | F5: N/A | G5: ='L3.1'!G3 -> No data | H5: ='L3.1'!H3 -> No data | I5: ='L3.1'!I3 -> TBD
B6: L3.2 | C6: 66 | D6: ='L3.2'!C3 -> Funding for National Peatland restoration programme | E6: 3 | F6: N/A | G6: ='L3.2'!G3 -> No data | H6: ='L3.2'!H3 -> No data | I6: ='L3.2'!I3 -> TBD
B7: L3.3 | C7: 66 | D7: ='L3.3'!C3 -> Peatland Sustainable Management Scheme investment | E7: 3 | F7: N/A | G7: ='L3.3'!G3 -> No data | H7: ='L3.3'!H3 -> No data | I7: ='L3.3'!I3 -> TBD
B9: Indicator number | C9: Indicator | E9: Tier | F9: Desired direction of travel | G9: CB1 progress | H9: Progress since 2020 | I9: Unit
B10: L2.1 | C10: ='L2.1'!C3 -> Total woodland area | E10: 2 | F10: Increase | G10: ='L2.1'!G3 -> 2 | H10: ='L2.1'!H3 -> 0 | I10: ='L2.1'!I3 -> Thousands of hectares
B11: L2.2 | C11: ='L2.2'!C3 -> Total new planting and restocking | E11: 2 | F11: Increase | G11: ='L2.2'!G3 -> 1 | H11: ='L2.2'!H3 -> 3 | I11: ='L2.2'!I3 -> Thousands of hectares
B12: L2.3 | C12: ='L2.3'!C3 -> Size of Welsh Government woodland estate | E12: 2 | F12: Increase | G12: ='L2.3'!G3 -> 2 | H12: ='L2.3'!H3 -> 2 | I12: ='L2.3'!I3 -> Thousands of hectares
B13: L2.4 | C13: ='L2.4'!C3 -> Estimated Welsh Government woodland estate managed with and without clearfell | E13: 2 | F13: Increase | G13: ='L2.4'!G3 -> No data | H13: ='L2.4'!H3 -> No data | I13: ='L2.4'!I3 -> TBD
B14: L2.5 | C14: ='L2.5'!C3 -> Area of peatland restored to near-natural condition | E14: 2 | F14: Increase | G14: ='L2.5'!G3 -> No data | H14: ='L2.5'!H3 -> No data | I14: ='L2.5'!I3 -> TBD
B15: L2.6 | C15: ='L2.6'!C3 -> Area of peatland undergoing restoration under WG peatland SMS systems | E15: 2 | F15: Increase | G15: ='L2.6'!G3 -> No data | H15: ='L2.6'!H3 -> No data | I15: ='L2.6'!I3 -> TBD
B17: Indicator number | C17: Indicator | E17: Tier | F17: Desired direction of travel | G17: CB1 progress | H17: 2020 progress [Note 3] | I17: Unit
B19: L1.1 | C19: ='L1.1'!C3 -> LULUCF Sector (Net) GHG emissions | E19: 1 | F19: Decrease | G19: ='L1.1'!G3 -> 1.00 | H19: ='L1.1'!I3 -> ü | I19: ktCO2e
B20: L1.2 | C20: ='L1.2'!C3 -> LULUCF Source Emissions | E20: 1 | F20: Decrease | G20: ='L1.2'!G3 -> 2.00 | H20: N/A | I20: ktCO2e
B21: L1.3 | C21: ='L1.3'!C3 -> LULUCF Sink Emissions | E21: 1 | F21: Increase | G21: ='L1.3'!G3 -> 1.00 | H21: N/A | I21: ktCO2e
B24: Land Use & Forestry Sector Policies and Proposals
B26: No. | C26: Policy/proposal [Note 2]
B27: 62 | C27: Implementing our Natural Resources Policy
B28: 63 | C28: Woodland for Wales Strategy
B29: 64 | C29: Felling licenses
B30: 65 | C30: Welsh Government woodland estate
B31: 19 | C31: Increase tree planting
B32: 20 | C32: Identifying preferred areas for tree planting
B33: 66 | C33: Peatlands for the Future
B35: For full details on each policy and proposal, see the LCDP1 plan at the link below:
B36: https://gov.wales/sites/default/files/publications/2019-06/low-carbon-delivery-plan_1.pdf

Sheet OverviewDiagram
A1: Overview Diagram
A2: The diagram below summarises "CB1 progress" for each indicator in this sector. GREEN cells indicate that the desired direction of travel was met, RED cells indicate that the desired direction of traval was not met, and AMBER cells indicate that a significant trend in either direction could not be observed (using a 5% threshold - see "Introduction" tab). Grey cells mean no data available or a desired direction of travel (and thus rating) could not be assigned.
C5: Increasing tree cover | E5: Reducing carbon loss from peatlands/building carbon stocks within biomass
C6: L3.1 Implementation of Natural Resources Policy | E6: L3.2 Funding for National Peatland restoration programme
E7: L3.3 Peatland Sustainable Management Scheme investment
C9: L2.1Total woodland area | E9: L2.5 Area of peatland restored to near-natural condition
C10: L2.2 Total new planting and restocking | E10: L2.6 Area of peatland undergoing restoration under WG peatland SM scheme
C11: LUF2.3 Size of Welsh Government woodland estate
C12: L2.4 Estimated Welsh Government woodland estate managed with and without clearfell
C14: L1.1 Land Use, Land Use Change & Forestry GHG Emissions (CB1 progress)
C15: L1.2 LULUCF Source Emissions | E15: L1.3 LULUCF Sink Emissions

Sheet L3.1
B2: L3.1 | C2: Indicator | E2: Tier | F2: Desired direction of travel | G2: CB1 progress or delivery [Note 1] | H2: Progress since 2020 | I2: Unit
C3: Implementation of Natural Resources Policy | E3: 3 | F3: N/A | G3: No data | H3: No data | I3: TBD
B28: Indicator context:
B29: Tracks specific actions undertaken to implement natural resources policy.
B31: Notes:
B32: Indicator under development. WG are working to make the data available for this indicator where possible.
B35: Trends:
B38: Data source:
B39: Release date:
B40: External link:
B41: Notes:

Sheet L3.2
B2: L3.2 | C2: Indicator | E2: Tier | F2: Desired direction of travel | G2: CB1 progress or delivery [Note 1] | H2: Progress since 2020 | I2: Unit
C3: Funding for National Peatland restoration programme | E3: 3 | F3: N/A | G3: No data | H3: No data | I3: TBD
B28: Indicator context:
B29: Tracks how much has been invested through Welsh Government’s sustainable management scheme to improve sustainable management of Welsh peatlands.
B31: Notes:
B32: Indicator under development. WG are working to make the data available for this indicator where possible.
B35: Trends:
B38: Data source:
B39: Release date:
B40: External link:
B41: Notes:

Sheet L3.3
B2: L3.3 | C2: Indicator | E2: Tier | F2: Desired direction of travel | G2: CB1 progress or delivery [Note 1] | H2: Progress since 2020 | I2: Unit
C3: Peatland Sustainable Management Scheme investment | E3: 3 | F3: N/A | G3: No data | H3: No data | I3: TBD
B28: Indicator context:
B29: Tracks how much has been invested through Welsh Government’s sustainable management scheme to improve sustainable management of Welsh peatlands.
B31: Notes:
B32: Indicator under development. WG are working to make the data available for this indicator where possible.
B35: Trends:
B38: Data source:
B39: Release date:
B40: External link:
B41: Notes:

Sheet L2.1
B2: L2.1 | C2: Indicator | E2: Tier | F2: Desired direction of travel | G2: CB1 progress | H2: Progress since 2020 | I2: Unit
C3: Total woodland area | E3: 2 | F3: Increase | G3: =I7 -> 2 | H3: =I8 -> 0 | I3: Thousands of hectares
H6: % change | I6: Rating
G7: CB1 progress | H7: =(J17-J13)/J13 -> 1% | I7: =IF(H7="No data",0,IF(H7>0.05,3,IF(H7<-0.05,1,2))) -> 2
G8: Progress since 2020 | H8: No data | I8: =IF(H8="No data",0,IF(H8>0.05,3,IF(H8<-0.05,1,2))) -> 0
J10: thousands of hectares
G11: Year | H11: NRW | I11: Private sector | J11: Total
G12: 2015 | H12: 117 | I12: 189 | J12: 306
G13: 2016 | H13: 117 | I13: 190 | J13: 307
G14: 2017 | H14: 117 | I14: 191 | J14: 308
G15: 2018 | H15: 117 | I15: 192 | J15: 309
G16: 2019 | H16: 117 | I16: 193 | J16: 310
G17: 2020 | H17: 117 | I17: 193 | J17: 310
G18: 2021 | H18: 115 | I18: 195 | J18: 310
G19: 2022 | H19: 115 | I19: 196 | J19: 310
B22: Indicator context:
B23: This indicator tracks the total size of all woodland in Wales.
B25: Notes:
B26: NRW = Natural Resources Wales
B27: All NRW woodland is certified. The woodland areas are the latest areas from the National Forest Inventory, rather than the areas shown on certificates.
B28: Private sector: all other woodland. Includes woodland managed by NRW outside the WGWE, other publicly owned woodland (e.g., owned by local authorities) and privately-owned woodland.
B29: All certified woodland is certified under the Forest Stewardship Council (FSC) scheme or the Programme for the Endorsement of Forest Certification (PEFC) scheme, with many woodlands certified under both schemes.
B30: The estimates are based on UK data published by FSC and PEFC, supplemented by data from individual certificates and other sources. Where possible, figures are for the woodland area certified, rather than the land area certified.
B31: Estimates only relate to the Welsh Government Woodland Estate (WGWE). The data representing WGWE in this dataset is based on the National Forest Inventory definition of woodland ( https://www.data.gov.uk/dataset/02e2489e-65c9-4fc7-ac67-6774833552f7/national-forest-inventory-woodland-wales-2017 ), and therefore only includes productive forest area.
B33: Trends:
B34: Total woodland area increased slightly between 2015 and 2019 but has remained steady in recent years (2019-2022). Private sector woodland area has increased by around 1 thousand hectares per year between 2015 and 2022. NRW woodland remained constant at 117 thousand hectares until 2021, when 2 thousand hectares were lost. Over the CB1 period (2016-2020) total woodland area increased by 1%.
B36: Data source: | C36: Forestry Statistics - Woodland area in Wales
B37: Release date: | C37: 2022-06-16
B38: External link: | C38: https://www.forestresearch.gov.uk/tools-and-resources/statistics/statistics-by-topic/woodland-statistics/
B39: Notes: | C39: On webpage linked above, see "A: Woodland area (ods)" under "Accompanying data sets". In Excel, navigate to "Table A3: Woodland area in Wales"

Sheet L2.2
B2: L2.2 | C2: Indicator | E2: Tier | F2: Desired direction of travel | G2: CB1 progress | H2: Progress since 2020 | I2: Unit
C3: Total new planting and restocking | E3: 2 | F3: Increase | G3: =I7 -> 1 | H3: =I8 -> 3 | I3: Thousands of hectares
H6: % change | I6: Rating
G7: CB1 progress | H7: =(J18-J14)/J14 -> -16% | I7: =IF(H7="No data",0,IF(H7>0.05,3,IF(H7<-0.05,1,2))) -> 1
G8: Progress since 2020 | H8: =(J20-J18)/J18 -> 30% | I8: =IF(H8="No data",0,IF(H8>0.05,3,IF(H8<-0.05,1,2))) -> 3
G11: Year to | H11: Total (thousand hectares)
G12: 31 March | H12: Conifers | I12: Broadleaves | J12: Total
G13: 2015 | H13: 1.31 | I13: 0.74 | J13: 2.04
G14: =G13+1 -> 2016 | H14: 1.22 | I14: 0.65 | J14: 1.87
G15: =G14+1 -> 2017 | H15: 1.33 | I15: 0.78 | J15: 2.11
G16: 2018 | H16: 1.07 | I16: 0.80 | J16: 1.87
G17: 2019 | H17: 1.36 | I17: 1.01 | J17: 2.37
G18: 2020 | H18: 0.96 | I18: 0.61 | J18: 1.58
G19: 2021 | H19: 1.25 | I19: 0.89 | J19: 2.14
G20: 2022 | H20: 1.11 | I20: 0.94 | J20: 2.05
B23: Indicator context:
B24: This indicator tracks the rate at which tree planting takes place and changes to rate over time.
B26: Notes:
B27: FC = Forestry Commission (until March 2013); NRW = Natural Resources Wales (from April 2013); Private sector = All other woodland, including some other publicly owned woodland
B28: Private sector figures are based on areas for which grants were paid during the year
B29: Estimates of areas planted without grant aid are also included (where possible) up to 2009-10, but no estimates are available since then. As a result, the reported figures are likely to under-estimate the true level of planting activity.
B30: The planting season lies both sides of 31 March, and the weather can cause planting to be advanced or delayed.
B31: Includes woodland formed by natural colonisation/regeneration (where known)
B32: Restocking by natural regeneration in non-clearfell areas may be under-represented.
B33: Figures are provisional
B35: Trends:
B36: In 2020, a total of 1.58 thousand hectares of woodland was planted, the lowest value on record. Over the CB1 period (2016-2020) total new planting and restocking decreased by 16%, due to this sharp decline in 2020. Since then, planting and restocking has returned to normal levels of just over 2 thousand hectares per year.
B38: Data source: | C38: Forestry Statistics - New planting and restocking
B39: Release date: | C39: 2022-06-16
B40: External link: | C40: https://www.forestresearch.gov.uk/tools-and-resources/statistics/statistics-by-topic/woodland-statistics/
B41: Notes: | C41: On webpage linked above, see "C: New planting and publicly funded restocking (ods)" under "Accompanying data sets". In Excel, navigate to Tables C5 and C6
C42: The data presented here sums data from Tables C5 and C6

Sheet L2.3
B2: L2.3 | C2: Indicator | E2: Tier | F2: Desired direction of travel | G2: CB1 progress | H2: Progress since 2020 | I2: Unit
C3: Size of Welsh Government woodland estate | E3: 2 | F3: Increase | G3: =I7 -> 2 | H3: =I8 -> 2 | I3: Thousands of hectares
H6: % change | I6: Rating
G7: CB1 progress | H7: =(H18-H14)/H14 -> -0.17% | I7: =IF(H7="No data",0,IF(H7>0.05,3,IF(H7<-0.05,1,2))) -> 2
G8: Progress since 2020 | H8: =(H19-H18)/H18 -> 0.16% | I8: =IF(H8="No data",0,IF(H8>0.05,3,IF(H8<-0.05,1,2))) -> 2
G11: Year | H11: Area of WGWE (hectares) | I11: Area of WGWE (thousands of hectares)
G12: 2014 | H12: 123,452 | I12: =H12/1000 -> 123
G13: 2015 | H13: 123,396 | I13: =H13/1000 -> 123
G14: 2016 | H14: 123,410 | I14: 123
G15: 2017 | H15: 123,091 | I15: 123
G16: 2018 | H16: 123,311 | I16: 123
G17: 2019 | H17: 123,229 | I17: 123
G18: 2020 | H18: 123,197 | I18: 123
G19: 2021 | H19: 123,394 | I19: 123
B22: Indicator context:
B23: This indicator tracks progress towards aim to increase the size of the Welsh government woodland estate. Since LCDP1, the desired direction of travel associated with this indicator has been updated, with the intention now to "maintain" the size of the Welsh Government woodland estate as the Welsh Government wants most woodland expansion in Wales to be via other landowners and managers rather than through expanding the size of the Estate.
B25: Notes:
B26: The Lake Vyrnwy block has been excluded from these figures as we no longer manage that area on behalf of Severn Trent Water.
B27: Since LCDP1, the desired direction of travel associated with this indicator has been updated, with the intention now to "maintain" the size of the Welsh Government woodland estate.
B29: Trends:
B30: The total area of Welsh Government Woodland Estate has stayed fairly static in recent years, with all year-on-year changes shown here being less than 1% in either direction. In 2020, the Welsh Government woodland estate covered an area of 123,197 ha, down slightly from the 2014 peak of 123,452 ha. This is also a very slight decrease from the 123,410 ha reported in 2016 (a decrease of ~0.17%).
B32: Data source: | C32: NRW Forester Statistics - Size of Welsh Government Woodland Estate
B33: Release date: | C33: n/a - data provided directly by NRW
B34: External link: | C34: n/a - data provided directly by NRW
B35: Notes:

Sheet L2.4
B2: L2.4 | C2: Indicator | E2: Tier | F2: Desired direction of travel | G2: CB1 progress | H2: Progress since 2020 | I2: Unit
C3: Estimated Welsh Government woodland estate managed with and without clearfell | E3: 2 | F3: Increase | G3: No data | H3: No data | I3: TBD
B28: Indicator context:
B29: This indicator tracks progress towards aim to increase the size of the Welsh government woodland estate, but considering the woodland management practices across the area of woodland managed by WG.
B31: Notes:
B32: Indicator under development. WG are working to make the data available for this indicator where possible.
B35: Trends:
B38: Data source:
B39: Release date:
B40: External link:
B41: Notes:

Sheet L2.5
B2: L2.5 | C2: Indicator | E2: Tier | F2: Desired direction of travel | G2: CB1 progress | H2: Progress since 2020 | I2: Unit
C3: Area of peatland restored to near-natural condition | E3: 2 | F3: Increase | G3: No data | H3: No data | I3: TBD
B28: Indicator context:
B29: Drainage, land use change, inappropriate grazing, burning and air pollution have all damaged and degraded Welsh peatlands. Over 70% of Welsh peatlands were estimated to have been modified and in degraded condition. This has negatively impacted upon their ability to deliver a range of ecosystem services, most notably their ability to absorb and store carbon. Peatlands in degraded condition are significant sources of GHGs rather than sinks. The Glastir Monitoring and Evaluation programme 2015 compared present-day emissions to natural ‘reference’ emissions and estimated that if all Welsh peatlands were returned to near-natural condition emissions reductions of approximately 300 ktCO2e/yr would be achieved.
B31: Notes:
B32: Indicator under development. WG are working to make the data available for this indicator where possible.
B35: Trends:
B38: Data source:
B39: Release date:
B40: External link:
B41: Notes:

Sheet L2.6
B2: L2.6 | C2: Indicator | E2: Tier | F2: Desired direction of travel | G2: CB1 progress | H2: Progress since 2020 | I2: Unit
C3: Area of peatland undergoing restoration under WG peatland SMS systems | E3: 2 | F3: Increase | G3: No data | H3: No data | I3: TBD
B28: Indicator context:
B29: Current Welsh Government policy is to use all available mechanisms to bring semi-natural peatlands into sustainable management by 2020. Semi-natural peatlands cover approximately 66,000 ha and if restored emissions reductions of approximately 70 ktCO2e yr-1 would be achieved. The most intensive emissions arising from peatlands in Wales are from those under grassland and arable land use (not semi-natural). Towards 2050, Welsh Government need to continually look at what new opportunities can be brought into play to further enable all Welsh peatlands being brought into sustainable management securing a further 230 ktCO2e yr-1 of emission reductions.
B31: Notes:
B32: Indicator under development. WG are working to make the data available for this indicator where possible.
B35: Trends:
B38: Data source:
B39: Release date:
B40: External link:
B41: Notes:

Sheet L1.1
B2: L1.1 | C2: Indicator | E2: Tier | F2: Desired direction of travel | G2: CB1 progress | H2: Anticipated contribution to CCC’s 2020 pathway | I2: 2020 progress [Notes 3, a] | J2: Unit
C3: LULUCF Sector (Net) GHG emissions | E3: 1 | F3: Decrease | G3: =K7 -> 1.00 | H3: The LULUCF sector should continue to provide a sink from baseline levels in the year 2020 | I3: =K8 -> ü | J3: ktCO2e
J6: % change | K6: Rating
I7: CB1 progress | J7: =-(J37-J33)/J33 -> 13% | K7: =IF(J7="No data",0,IF(J7>0.05,1,IF(J7<-0.05,3,2))) -> 1
I8: 2020 progress [Notes 3, a] | J8: The sector remains a net sink | K8: ü
I11: Year | J11: LULUCF Sector Total (ktCO2e) | K11: % change from base year | L11: % change from previous year
I12: BaseYear | J12: -297
I13: 1990 | J13: -297
I14: 1995 | J14: -530 | K14: =1-(J14/$J$12) -> -79% | L14: =-(J14-J13)/J13 -> -79%
I15: 1998 | J15: -646 | K15: =1-(J15/$J$12) -> -118% | L15: -22%
I16: 1999 | J16: -424 | K16: -43% | L16: 34%
I17: 2000 | J17: -424 | K17: -43% | L17: -0%
I18: 2001 | J18: -513 | K18: -73% | L18: -21%
I19: 2002 | J19: -573 | K19: -93% | L19: -12%
I20: 2003 | J20: -577 | K20: -94% | L20: -1%
I21: 2004 | J21: -624 | K21: -110% | L21: -8%
I22: 2005 | J22: -662 | K22: -123% | L22: -6%
I23: 2006 | J23: -731 | K23: -146% | L23: -11%
I24: 2007 | J24: -789 | K24: -166% | L24: -8%
I25: 2008 | J25: -771 | K25: -160% | L25: 2%
I26: 2009 | J26: -822 | K26: -177% | L26: -7%
I27: 2010 | J27: -771 | K27: -159% | L27: 6%
I28: 2011 | J28: -797 | K28: -168% | L28: -3%
I29: 2012 | J29: -709 | K29: -139% | L29: 11%
I30: 2013 | J30: -672 | K30: -126% | L30: 5%
I31: 2014 | J31: -689 | K31: -132% | L31: -2%
I32: 2015 | J32: -670 | K32: -125% | L32: 3%
I33: 2016 | J33: -698 | K33: -135% | L33: -4%
I34: 2017 | J34: -684 | K34: -130% | L34: 2%
I35: 2018 | J35: -653 | K35: -120% | L35: 4%
I36: 2019 | J36: -674 | K36: -127% | L36: -3%
I37: 2020 | J37: -611 | K37: -106% | L37: 9%
B40: Indicator context:
B41: Indicator detailing the total net GHG emissions for the land use, land use change and forestry sector, as defined in Prosperity for All; A Low Carbon Wales. Net GHG emissions consider both source emissions (L1.2) and sink emissions (or the removal of CO2 from the atmosphere; L1.3)
B43: Notes:
B44: For LULUCF, the anticipated contribution to the CCC's 2020 pathways is not expressed as an intended emissions reduction from the base year, but is instead expressed as an intention for the sector to remain a net sink of emissions (i.e., negative emissions values).
B47: Trends:
B48: The LULUCF sector is the only sector with the current capability to remove emissions from the atmosphere. The sector was required to remain a sink of emissions in 2020. In 2020, net emissions from the LULUCF sector were -610.57 ktCO2e, remaining a sink. While this is an improvement on the base year of 1990, net emissions from this sector have steadily increased since 2009 (with a few minor fluctuations). Between 2016 and 2020, LULUCF sector emissions increased by 13%.
B50: Data source: | C50: NAEI GHG 2020 (Wales)
B51: Release date: | C51: 2022-07-06
B52: External link: | C52: https://naei.beis.gov.uk/reports/reports?section_id=3
B53: Notes:

Sheet L1.2
B2: L1.2 | C2: Indicator | E2: Tier | F2: Desired direction of travel | G2: CB1 progress | H2: Unit
C3: LULUCF Source Emissions | E3: 1 | F3: Decrease | G3: =K7 -> 2.00 | H3: ktCO2e
J6: % change | K6: Rating
I7: CB1 progress | J7: =(J36-J32)/J32 -> -3% | K7: =IF(J7="No data",0,IF(J7>0.05,1,IF(J7<-0.05,3,2))) -> 2
I10: Year | J10: LULUCF Source Emissions (ktCO2e) | K10: % change from base year | L10: % change from previous year
I11: BaseYear | J11: 1,994
I12: 1990 | J12: 1,994
I13: 1995 | J13: 1,881 | K13: =(J13-$J$11)/$J$11 -> -5.7% | L13: =(J13-J12)/J12 -> -5.7%
I14: 1998 | J14: 1,796 | K14: -9.9% | L14: -4.5%
I15: 1999 | J15: 1,758 | K15: -11.9% | L15: -2.1%
I16: 2000 | J16: 1,793 | K16: -10.1% | L16: 2.0%
I17: 2001 | J17: 1,708 | K17: -14.4% | L17: -4.8%
I18: 2002 | J18: 1,631 | K18: -18.2% | L18: -4.5%
I19: 2003 | J19: 1,614 | K19: -19.0% | L19: -1.0%
I20: 2004 | J20: 1,601 | K20: -19.7% | L20: -0.8%
I21: 2005 | J21: 1,590 | K21: -20.3% | L21: -0.7%
I22: 2006 | J22: 1,549 | K22: -22.3% | L22: -2.6%
I23: 2007 | J23: 1,494 | K23: -25.1% | L23: -3.5%
I24: 2008 | J24: 1,561 | K24: -21.7% | L24: 4.4%
I25: 2009 | J25: 1,483 | K25: -25.7% | L25: -5.0%
I26: 2010 | J26: 1,478 | K26: -25.9% | L26: -0.3%
I27: 2011 | J27: 1,464 | K27: -26.6% | L27: -1.0%
I28: 2012 | J28: 1,482 | K28: -25.7% | L28: 1.2%
I29: 2013 | J29: 1,433 | K29: -28.1% | L29: -3.3%
I30: 2014 | J30: 1,415 | K30: -29.0% | L30: -1.2%
I31: 2015 | J31: 1,391 | K31: -30.3% | L31: -1.8%
I32: 2016 | J32: 1,369 | K32: -31.3% | L32: -1.5%
I33: 2017 | J33: 1,364 | K33: -31.6% | L33: -0.4%
I34: 2018 | J34: 1,348 | K34: -32.4% | L34: -1.2%
I35: 2019 | J35: 1,337 | K35: -32.9% | L35: -0.8%
I36: 2020 | J36: 1,325 | K36: =(J36-$J$11)/$J$11 -> -33.6% | L36: -1.0%
B40: Indicator context:
B41: Indicator to track land use and forestry gross source emissions.
B43: Notes:
B47: Trends:
B48: There has been an overall decrease in emissions from LULUCF source categories since the base year, resulting in a 33.5% reduction in emissions in 2020 since 1990, despite some fluctuation throughout the time series. The most recent data for 2020 indicates that this decrease trend has continued in the last year, with a 1.0% decrease in emissions from 2019-2020. Between 2016 and 2020, source emissions decreased by 3%. However, the size of the sink has also decreased.
B50: Data source: | C50: NAEI GHG 2020 (Wales)
B51: Release date: | C51: 2022-07-06
B52: External link: | C52: https://naei.beis.gov.uk/reports/reports?section_id=3
B53: Notes:

Sheet L1.3
B2: L1.3 | C2: Indicator | E2: Tier | F2: Desired direction of travel | G2: CB1 progress | H2: Unit
C3: LULUCF Sink Emissions | E3: 1 | F3: Increase | G3: =K8 -> 1.00 | H3: ktCO2e
J7: % change | K7: Rating
I8: CB1 progress | J8: =(J37-J33)/J33 -> -6% | K8: =IF(J8="No data",0,IF(J8>0.05,3,IF(J8<-0.05,1,2))) -> 1
I11: Year | J11: LULUCF Sink Emissions (ktCO2e) | K11: % change from base year | L11: % change from previous year
I12: BaseYear | J12: -2,291
I13: 1990 | J13: -2,291
I14: 1995 | J14: -2,412 | K14: =(J14-$J$12)/$J$12 -> 5.3% | L14: =(J14-J13)/J13 -> 5.3%
I15: 1998 | J15: -2,442 | K15: =(J15-$J$12)/$J$12 -> 6.6% | L15: 1.3%
I16: 1999 | J16: -2,181 | K16: -4.8% | L16: -10.7%
I17: 2000 | J17: -2,217 | K17: -3.2% | L17: 1.6%
I18: 2001 | J18: -2,220 | K18: -3.1% | L18: 0.1%
I19: 2002 | J19: -2,204 | K19: -3.8% | L19: -0.7%
I20: 2003 | J20: -2,192 | K20: -4.3% | L20: -0.5%
I21: 2004 | J21: -2,224 | K21: -2.9% | L21: 1.5%
I22: 2005 | J22: -2,252 | K22: -1.7% | L22: 1.2%
I23: 2006 | J23: -2,280 | K23: -0.5% | L23: 1.3%
I24: 2007 | J24: -2,283 | K24: -0.3% | L24: 0.1%
I25: 2008 | J25: -2,332 | K25: 1.8% | L25: 2.1%
I26: 2009 | J26: -2,304 | K26: 0.6% | L26: -1.2%
I27: 2010 | J27: -2,249 | K27: -1.8% | L27: -2.4%
I28: 2011 | J28: -2,261 | K28: -1.3% | L28: 0.5%
I29: 2012 | J29: -2,190 | K29: -4.4% | L29: -3.1%
I30: 2013 | J30: -2,105 | K30: -8.1% | L30: -3.9%
I31: 2014 | J31: -2,104 | K31: -8.2% | L31: -0.1%
I32: 2015 | J32: -2,060 | K32: -10.1% | L32: -2.1%
I33: 2016 | J33: -2,068 | K33: -9.8% | L33: 0.4%
I34: 2017 | J34: -2,048 | K34: -10.6% | L34: -1.0%
I35: 2018 | J35: -2,002 | K35: -12.6% | L35: -2.3%
I36: 2019 | J36: -2,011 | K36: -12.2% | L36: 0.5%
I37: 2020 | J37: -1,935 | K37: -15.5% | L37: -3.8%
B40: Indicator context:
B41: Indicator to track land use and forestry sink emissions. Sink emissions are negative, and refer to the removal of emissions from the atmosphere via the uptake of CO2 by certain land types (e.g. grasslands).
L42: `
B43: Notes:
B44: This Tier 1 indicator has a different direction of travel to all others - because we are looking at sink emissions (which are negative), the intention is for the sink to increase (as opposed to source/net emissions, which are intended to decrease).
B45: Emissions are negative because sink emissions are removed from the atmosphere (i.e., the land acts as a sink for GHG emissions).
B47: Trends:
B48: The total sink provided by the LULUCF sector has decreased in size by 15.5% since 1990. Since 2011, there has been an unsteady trend in the contributions the sink element makes to total sector emissions. The greatest year on year change in sink size occurred in 1999, when the sink decreased in size by 10.7%. More recently, the sink capacity has increased by 0.5% in 2019 and reduced by 3.8% in 2020. Over 2016-2020, sink removals decreased by 6%.
B50: Data source: | C50: NAEI GHG 2020 (Wales)
B51: Release date: | C51: 2022-07-06
B52: External link: | C52: https://naei.beis.gov.uk/reports/reports?section_id=3
B53: Notes:
